bitfinex/quotes_BTCUSD_20241124
["timestamp","ask_amount","ask_price","bid_price","bid_amount"]
[1732471379409,6e-07,95825.0,95824.0,0.51762747]
[1732471379664,0.0017128,95827.0,95824.0,0.51762747]
[1732471379665,0.0016734,95827.0,95826.0,0.3926122]
[1732471379934,0.0016734,95827.0,95826.0,0.64612647]
[1732471380391,0.0016734,95827.0,95826.0,0.67445673]
[1732471380632,0.0017118,95832.0,95828.0,0.3926112]
[1732471380845,0.0017118,95832.0,95828.0,0.51762547]
[1732471381074,0.0017118,95832.0,95828.0,0.54595573]
[1732471381705,0.0017118,95832.0,95828.0,0.51762547]
[1732471382146,8e-07,95829.0,95828.0,0.51762547]
[1732471383066,0.0017128,95851.0,95842.0,0.3926052]
[1732471383288,0.0017128,95851.0,95842.0,0.51761947]
[1732471384202,0.0017128,95851.0,95842.0,0.31761947]
[1732471385421,0.0493,95849.0,95842.0,0.35054508]
[1732471386968,0.0837122,95843.0,95842.0,0.20054508]
[1732471387575,0.0837122,95843.0,95842.0,0.16674927]
[1732471388282,0.0837122,95843.0,95842.0,0.31674927]
[1732471388720,0.0837122,95843.0,95842.0,0.25201427]
[1732471388991,0.0837122,95843.0,95842.0,0.10201427]
[1732471389225,0.1303122,95843.0,95842.0,0.10201427]
[1732471389446,0.0758,95840.0,95837.0,0.03437786]
[1732471389663,0.180141,95840.0,95812.0,0.2]
[1732471389877,0.0758,95840.0,95835.0,0.10201427]
[1732471390363,0.0758,95840.0,95836.0,0.041737]
[1732471390590,0.0758,95840.0,95835.0,0.10201427]
[1732471391326,0.0758,95840.0,95835.0,0.14375227]
[1732471392440,0.0758,95840.0,95839.0,0.041736]
[1732471392684,0.0758,95840.0,95835.0,0.14375227]
[1732471392888,0.0758,95840.0,95835.0,0.10201427]
[1732471393349,0.0758,95840.0,95836.0,0.041737]
[1732471393832,0.0758,95840.0,95835.0,0.10201427]
[1732471394043,0.2749298,95840.0,95835.0,0.10201427]
[1732471394688,0.104341,95839.0,95835.0,0.10201427]
[1732471394965,0.104341,95839.0,95824.0,0.041743]
[1732471394966,0.104348,95833.0,95824.0,0.041743]
[1732471395244,0.208683,95839.0,95825.0,0.10201427]
[1732471395245,0.0758,95830.0,95825.0,0.10201427]
[1732471395462,0.0758,95830.0,95827.0,0.041741]
[1732471395691,0.0758,95830.0,95827.0,0.14375527]
[1732471396436,0.0758,95830.0,95827.0,0.10201427]
[1732471396660,0.2749298,95830.0,95827.0,0.14375527]
[1732471396868,0.2749298,95830.0,95827.0,0.10201427]
[1732471397097,0.2749298,95830.0,95827.0,0.14375527]
[1732471397355,0.104353,95828.0,95827.0,0.10201427]
[1732471397590,0.284505,95829.0,95816.0,0.173]
[1732471397808,0.0758,95827.0,95818.0,0.15]
[1732471398020,0.0758,95827.0,95819.0,0.10201427]
[1732471398697,0.180155,95827.0,95819.0,0.10201427]
[1732471399144,0.180155,95827.0,95819.0,0.14375927]
[1732471399354,0.0758,95827.0,95819.0,0.10201427]
[1732471399569,0.104356,95826.0,95819.0,0.10201427]
[1732471399796,0.0758,95827.0,95819.0,0.10201427]
[1732471400023,0.104355,95826.0,95819.0,0.10201427]
[1732471400501,0.0758,95827.0,95819.0,0.10201427]
[1732471401618,0.0758,95827.0,95819.0,0.14375927]
[1732471402052,0.0758,95827.0,95826.0,0.041742]
[1732471402262,0.0758,95827.0,95826.0,0.14375627]
[1732471406026,0.0758,95827.0,95826.0,0.10201427]
[1732471406469,0.0758,95827.0,95817.0,0.0008551]
[1732471406687,0.104361,95821.0,95819.0,0.15]
[1732471406900,0.208711,95826.0,95820.0,0.10201427]
[1732471407127,0.0758,95827.0,95820.0,0.10201427]
[1732471407374,0.104359,95823.0,95820.0,0.10201427]
[1732471407793,0.208713,95825.0,95820.0,0.10201427]
[1732471408012,0.104358,95824.0,95820.0,0.10201427]
[1732471408677,0.0758,95827.0,95820.0,0.10201427]
[1732471408896,0.104359,95823.0,95820.0,0.10201427]
[1732471409177,0.0758,95827.0,95820.0,0.10201427]
[1732471409423,0.180155,95827.0,95820.0,0.10201427]
[1732471409640,0.104357,95825.0,95820.0,0.10201427]
[1732471410077,0.0758,95827.0,95820.0,0.10201427]
[1732471410492,0.208711,95826.0,95820.0,0.10201427]
[1732471410945,0.10436,95822.0,95820.0,0.10201427]
[1732471411134,0.104357,95824.0,95820.0,0.10201427]
[1732471411386,0.208714,95825.0,95820.0,0.10201427]
[1732471411640,0.10436,95822.0,95820.0,0.10201427]
[1732471411856,0.104361,95822.0,95820.0,0.10201427]
[1732471412069,0.104361,95821.0,95820.0,0.10201427]
[1732471412548,0.1991298,95822.0,95820.0,0.10201427]
[1732471412952,0.3034898,95822.0,95820.0,0.10201427]
[1732471413212,0.104361,95821.0,95820.0,0.10201427]
[1732471413430,0.1991298,95822.0,95820.0,0.10201427]
[1732471413649,0.3034898,95822.0,95820.0,0.10201427]
[1732471413873,0.1991298,95822.0,95820.0,0.10201427]
[1732471414345,0.104361,95821.0,95820.0,0.10201427]
[1732471414561,0.1991298,95822.0,95820.0,0.10201427]
[1732471414775,0.3034898,95822.0,95820.0,0.10201427]
[1732471415430,0.1991298,95822.0,95820.0,0.10201427]
[1732471415913,0.104361,95821.0,95820.0,0.10201427]
[1732471417470,0.1991298,95822.0,95820.0,0.10201427]
[1732471417933,0.3034898,95822.0,95820.0,0.10201427]
[1732471418156,0.104361,95821.0,95820.0,0.10201427]
[1732471418381,0.104364,95818.0,95817.0,0.0008551]
[1732471419306,0.4264938,95818.0,95817.0,0.0008551]
[1732471419966,0.4284938,95818.0,95817.0,0.0008551]
[1732471425029,0.4264938,95818.0,95817.0,0.0008551]
[1732471430332,0.42621724,95818.0,95817.0,0.0008551]
[1732471432367,0.42821724,95818.0,95817.0,0.0008551]
[1732471433279,0.42621724,95818.0,95817.0,0.0008551]
[1732471433505,0.42821724,95818.0,95817.0,0.0008551]
[1732471449015,0.42621724,95818.0,95817.0,0.0008551]
[1732471449249,0.0782,95832.0,95818.0,0.041745]
[1732471449537,0.0017106,95818.0,95817.0,0.0426011]
[1732471450439,0.0017106,95818.0,95817.0,0.04364465]
[1732471450665,0.0017106,95818.0,95817.0,0.0426011]
[1732471451117,0.0017106,95818.0,95817.0,0.08884462]
[1732471451364,0.0017106,95818.0,95817.0,0.19085889]
[1732471451614,0.0017106,95818.0,95817.0,0.34085889]
[1732471451848,0.0017106,95818.0,95817.0,0.36281537]
[1732471452089,0.0017106,95818.0,95817.0,0.44471537]
[1732471453642,0.0017106,95818.0,95817.0,0.42171537]
[1732471454107,0.0017106,95818.0,95817.0,0.29461537]
[1732471454981,0.0017106,95818.0,95817.0,0.14461537]
[1732471455503,0.0017106,95818.0,95817.0,0.10286937]
[1732471455966,0.3052044,95818.0,95817.0,0.0008551]
[1732471456208,0.3834044,95818.0,95817.0,0.0008551]
[1732471457766,0.3854044,95818.0,95817.0,0.0008551]
[1732471457975,0.3834044,95818.0,95817.0,0.0008551]
[1732471458214,0.3854044,95818.0,95817.0,0.0008551]
[1732471465747,0.93611867,95818.0,95817.0,0.0008551]
[1732471465959,1.08611867,95818.0,95817.0,0.0008551]
[1732471466400,1.09153067,95818.0,95817.0,0.0008551]
[1732471470536,1.11453067,95818.0,95817.0,0.0008551]
[1732471477349,0.73611867,95818.0,95817.0,0.0008551]
[1732471478444,0.53611867,95818.0,95817.0,0.0008551]
[1732471478655,0.73611867,95818.0,95817.0,0.0008551]
[1732471480248,0.93611867,95818.0,95817.0,0.0008551]
[1732471480475,0.95911867,95818.0,95817.0,0.0008551]
[1732471482791,1.10911867,95818.0,95817.0,0.0008551]
[1732471494310,1.10711867,95818.0,95817.0,0.0008551]
[1732471494499,1.10911867,95818.0,95817.0,0.0008551]
[1732471494907,1.10711867,95818.0,95817.0,0.0008551]
[1732471495235,1.10911867,95818.0,95817.0,0.0008551]
[1732471501874,0.83741867,95818.0,95817.0,0.0008551]
[1732471502082,0.75921867,95818.0,95817.0,0.0008551]
[1732471502280,0.36008887,95818.0,95817.0,0.0008551]
[1732471502484,0.55921867,95818.0,95817.0,0.0008551]
[1732471502739,0.2580746,95818.0,95817.0,0.0008551]
[1732471502934,0.3052044,95818.0,95817.0,0.0008551]
[1732471507200,0.3072044,95818.0,95817.0,0.0008551]
[1732471517182,0.68931867,95818.0,95817.0,0.0008551]
[1732471517415,1.06231867,95818.0,95817.0,0.0008551]
[1732471523153,0.95624407,95818.0,95817.0,0.0008551]
[1732471523606,1.06060807,95818.0,95817.0,0.0008551]
[1732471527201,1.10610807,95818.0,95817.0,0.0008551]
[1732471528536,1.10810807,95818.0,95817.0,1e-07]
[1732471529000,0.3055328,95782.0,95781.0,0.0008549]
[1732471529239,0.40754707,95782.0,95781.0,0.0008549]
[1732471530511,0.3035328,95782.0,95781.0,0.0008549]
[1732471532873,0.3055328,95782.0,95781.0,0.0008549]
[1732471534854,0.3035328,95782.0,95781.0,0.0008549]
[1732471535702,0.3055328,95782.0,95781.0,0.0008549]
[1732471539992,0.1991298,95782.0,95781.0,0.0008549]
[1732471540202,0.1991298,95792.0,95781.0,0.0812549]
[1732471540406,0.1991298,95788.0,95787.0,0.041759]
[1732471540864,0.1991298,95788.0,95787.0,0.19107327]
[1732471541062,0.2807,95817.0,95799.0,0.041753]
[1732471541063,0.1991298,95800.0,95799.0,0.041753]
[1732471541274,0.1991298,95800.0,95797.0,0.041754]
[1732471541424,0.104381,95803.0,95797.0,0.041754]
[1732471541653,0.1991298,95798.0,95797.0,0.041754]
[1732471541804,0.0807,95817.0,95801.0,0.041753]
[1732471541805,0.002,95817.0,95801.0,0.041753]
[1732471542003,0.002,95817.0,95803.0,0.041752]
[1732471542244,0.104372,95811.0,95805.0,0.041751]
[1732471542461,0.1991298,95806.0,95805.0,0.041751]
[1732471542712,0.1991298,95799.0,95798.0,0.169454]
[1732471543127,0.1991298,95799.0,95798.0,0.1277]
[1732471546372,0.1991298,95799.0,95798.0,0.169454]
[1732471547261,0.1991298,95799.0,95798.0,0.1277]
[1732471547705,0.1991298,95799.0,95798.0,0.169454]
[1732471548322,0.1991298,95799.0,95798.0,0.1277]
[1732471549166,0.208758,95805.0,95647.0,0.68676762]
[1732471549167,0.1991298,95796.0,95769.0,0.15]
[1732471549373,0.09119299,95810.0,95769.0,0.15]
[1732471549374,0.104397,95789.0,95782.0,0.10201427]
[1732471549525,0.1991298,95792.0,95781.0,0.1258159]
[1732471549526,0.20879,95790.0,95781.0,0.0840549]
[1732471549729,0.208779,95795.0,95781.0,0.0008549]
[1732471549730,0.3035328,95782.0,95781.0,0.0008549]
[1732471550313,0.3055328,95782.0,95781.0,0.0008549]
[1732471550745,0.4255377,95782.0,95781.0,0.0008549]
[1732471555269,0.4235377,95782.0,95781.0,0.0008549]
[1732471555764,0.3191347,95782.0,95781.0,0.0008549]
[1732471555977,0.3035328,95782.0,95781.0,0.0008549]
[1732471556630,0.1991298,95782.0,95781.0,0.0008549]
[1732471557288,0.3035328,95782.0,95781.0,0.0008549]
[1732471557504,0.3055328,95782.0,95781.0,0.0008549]
[1732471558686,0.3035328,95782.0,95781.0,0.0008549]
[1732471558937,0.1991298,95782.0,95781.0,0.0008549]
[1732471559154,0.3035328,95782.0,95781.0,0.0008549]
[1732471559575,0.1991298,95782.0,95781.0,0.0008549]
[1732471559800,0.1991298,95782.0,95781.0,0.0426159]
[1732471560050,0.1991298,95792.0,95781.0,0.10286917]
[1732471560264,0.1991298,95797.0,95791.0,0.041757]
[1732471560464,0.104385,95799.0,95791.0,0.041757]
[1732471560465,0.1991298,95792.0,95791.0,0.041757]
[1732471560880,0.1991298,95792.0,95786.0,0.041759]
[1732471561084,0.1991298,95789.0,95782.0,0.17701427]
[1732471561248,0.1991298,95789.0,95788.0,0.041758]
[1732471561899,0.1991298,95789.0,95784.0,0.04176]
[1732471562105,0.1991298,95789.0,95786.0,0.041759]
[1732471562452,0.1991298,95789.0,95787.0,0.041759]
[1732471562673,0.1991298,95789.0,95788.0,0.041758]
[1732471562977,0.1491298,95789.0,95788.0,0.041758]
[1732471563384,0.1491298,95789.0,95785.0,0.14377427]
[1732471563947,0.1491298,95789.0,95785.0,0.10201427]
[1732471564231,0.1491298,95789.0,95785.0,0.14377327]
[1732471564446,0.1491298,95789.0,95776.0,0.08185805]
[1732471564447,0.1491298,95789.0,95776.0,0.1973]
[1732471564657,0.2535328,95782.0,95767.0,0.116767]
[1732471564865,0.2555328,95782.0,95768.0,0.041767]
[1732471565094,0.2535328,95782.0,95768.0,0.041767]
[1732471565312,0.2555328,95782.0,95768.0,0.041767]
[1732471565570,0.2555328,95782.0,95767.0,0.075]
[1732471565817,0.2555328,95782.0,95766.0,0.089068]
[1732471566043,0.2555328,95782.0,95770.0,0.041766]
[1732471566249,0.2555328,95782.0,95768.0,0.041767]
[1732471566453,0.2555328,95782.0,95766.0,0.0473]
[1732471566669,0.2555328,95782.0,95768.0,0.041767]
[1732471566878,0.2555328,95782.0,95766.0,0.089068]
[1732471567080,0.2555328,95782.0,95769.0,0.041767]
[1732471567934,0.2555328,95782.0,95763.0,0.041769]
[1732471568205,0.2555328,95782.0,95755.0,0.0426282]
[1732471568206,0.3308328,95782.0,95762.0,0.04177]
[1732471568410,0.45106134,95782.0,95762.0,0.04177]
[1732471568614,0.48428163,95782.0,95762.0,0.041769]
[1732471568836,0.48428163,95782.0,95764.0,0.041769]
[1732471569723,0.45106134,95782.0,95764.0,0.041769]
[1732471569931,0.45106134,95782.0,95762.0,0.041769]
[1732471570361,0.45106134,95782.0,95757.0,0.191772]
[1732471570586,0.45106134,95782.0,95763.0,0.041769]
[1732471570807,0.45106134,95782.0,95764.0,0.041769]
[1732471571499,0.45106134,95782.0,95758.0,0.15]
[1732471571500,0.45106134,95782.0,95762.0,0.04177]
[1732471571727,0.45106134,95782.0,95761.0,0.04177]
[1732471571930,0.45106134,95782.0,95762.0,0.04177]
[1732471572138,0.45106134,95782.0,95756.0,0.1965]
[1732471572370,0.45106134,95782.0,95758.0,0.041771]
[1732471572797,0.45106134,95782.0,95756.0,0.0465]
[1732471572999,0.45106134,95782.0,95757.0,0.041772]
[1732471573216,0.45106134,95782.0,95758.0,0.041771]
[1732471573397,0.45106134,95782.0,95756.0,0.0465]
[1732471573664,0.45106134,95782.0,95755.0,0.0008552]
[1732471574117,0.55307561,95782.0,95755.0,0.0008552]
[1732471575435,0.54807561,95782.0,95755.0,0.0008552]
[1732471576274,0.54807561,95782.0,95757.0,0.041772]
[1732471576490,0.54807561,95782.0,95756.0,0.041772]
[1732471576693,0.54807561,95782.0,95755.0,0.0008552]
[1732471577114,0.44606134,95782.0,95755.0,0.0008552]
[1732471577362,0.44606134,95782.0,95760.0,0.04177]
[1732471577790,0.44406134,95782.0,95762.0,0.041769]
[1732471578001,0.36876134,95782.0,95767.0,0.0786]
[1732471578221,0.37076134,95782.0,95767.0,0.0786]
[1732471578658,0.36876134,95782.0,95771.0,0.041766]
[1732471578891,0.36876134,95782.0,95769.0,0.041767]
[1732471579134,0.36876134,95782.0,95767.0,0.0786]
[1732471579369,0.36876134,95782.0,95769.0,0.041767]
[1732471579608,0.26435834,95782.0,95772.0,0.041765]
[1732471579841,0.26435834,95782.0,95777.0,0.041763]
[1732471580078,0.12022854,95782.0,95781.0,0.14463017]
[1732471580310,0.1441298,95785.0,95781.0,0.14463017]
[1732471580538,0.1441298,95785.0,95782.0,0.14377527]
[1732471580771,0.1441298,95785.0,95782.0,0.10201427]
[1732471581059,0.1441298,95787.0,95782.0,0.10201427]
[1732471581293,0.1441298,95787.0,95783.0,0.041761]
[1732471582228,0.1441298,95785.0,95782.0,0.10201427]
[1732471582694,0.1441298,95785.0,95783.0,0.04176]
[1732471582902,0.1441298,95787.0,95782.0,0.10201427]
[1732471583123,0.1441298,95787.0,95782.0,0.14377527]
[1732471583357,0.1441298,95787.0,95783.0,0.041761]
[1732471583607,0.1441298,95785.0,95783.0,0.041761]
[1732471583838,0.1441298,95785.0,95782.0,0.10201427]
[1732471584054,0.1441298,95785.0,95781.0,0.0008549]
[1732471584269,0.0017112,95789.0,95781.0,0.0008549]
[1732471584270,0.1441298,95787.0,95781.0,0.10286917]
[1732471584491,0.1441298,95785.0,95781.0,0.10286917]
[1732471586384,0.1441298,95785.0,95781.0,0.14463017]
[1732471586821,0.1441298,95785.0,95781.0,0.10286917]
[1732471587045,0.2485298,95785.0,95781.0,0.10286917]
[1732471587249,0.1441298,95785.0,95781.0,0.10286917]
[1732471587962,0.1441298,95785.0,95781.0,0.14463017]
[1732471588193,0.1441298,95785.0,95781.0,0.10286917]
[1732471589358,0.00024612,95784.0,95781.0,0.10286917]
[1732471591294,0.00024612,95784.0,95781.0,0.14463017]
[1732471591962,0.00024612,95784.0,95781.0,0.10286917]
[1732471592380,0.13937592,95785.0,95781.0,0.10286917]
[1732471592855,0.14108732,95785.0,95781.0,0.10286917]
[1732471595843,0.14108732,95785.0,95781.0,0.14463017]
[1732471596071,0.14108732,95785.0,95783.0,0.04176]
[1732471596298,0.14108732,95785.0,95781.0,0.10286917]
[1732471596541,0.14108732,95785.0,95781.0,0.14463017]
[1732471596993,0.14108732,95785.0,95781.0,0.18639117]
[1732471597668,0.14108732,95785.0,95782.0,0.041761]
[1732471598345,0.0017114,95785.0,95782.0,0.041761]
[1732471598570,0.0017114,95785.0,95781.0,0.14463017]
[1732471598571,0.14108732,95785.0,95783.0,0.041761]
[1732471598806,0.0017114,95785.0,95784.0,0.14377427]
[1732471599038,0.14108732,95785.0,95784.0,0.22037427]
[1732471599772,0.14108732,95785.0,95781.0,0.0008549]
[1732471600001,0.24377892,95782.0,95781.0,0.0008549]
[1732471601937,0.24577892,95782.0,95781.0,0.0008549]
[1732471602424,0.24377892,95782.0,95781.0,0.0008549]
[1732471602662,0.24577892,95782.0,95781.0,0.0008549]
[1732471605219,0.24377892,95782.0,95781.0,0.0008549]
[1732471605451,0.13937592,95782.0,95781.0,0.0008549]
[1732471605892,0.13937592,95783.0,95781.0,0.0008549]
[1732471606134,0.13937592,95782.0,95781.0,0.0008549]
[1732471608251,0.0017114,95785.0,95782.0,0.041761]
[1732471608481,0.0017114,95785.0,95782.0,0.10201427]
[1732471608749,0.0017114,95785.0,95782.0,0.14377527]
[1732471608984,0.14108732,95785.0,95782.0,0.10201427]
[1732471609904,0.0017114,95785.0,95782.0,0.10201427]
[1732471610121,0.14108732,95785.0,95782.0,0.10201427]
[1732471610581,0.24377892,95782.0,95781.0,0.0008549]
[1732471611263,0.24577892,95782.0,95781.0,0.0008549]
[1732471611494,0.24377892,95782.0,95781.0,0.0008549]
[1732471612885,0.13937592,95782.0,95781.0,0.0008549]
[1732471614286,0.24377892,95782.0,95781.0,0.0008549]
[1732471615205,0.36705244,95782.0,95781.0,0.0008549]
[1732471618211,0.36705244,95782.0,95781.0,0.0008049]
[1732471620479,0.36905244,95782.0,95781.0,0.0008049]
[1732471621585,0.36705244,95782.0,95781.0,0.0008049]
[1732471622509,0.36905244,95782.0,95781.0,0.0008049]
[1732471626579,0.40247821,95782.0,95781.0,0.0008049]
[1732471628235,0.40418961,95782.0,95781.0,0.0008049]
[1732471631951,0.40412961,95782.0,95781.0,0.0008049]
[1732471632392,0.28085609,95782.0,95781.0,0.0008049]
[1732471634174,0.24743032,95782.0,95781.0,0.0008049]
[1732471634430,0.24543032,95782.0,95781.0,0.0008049]
[1732471634876,0.14102732,95782.0,95781.0,0.0008049]
[1732471635102,0.24543032,95782.0,95781.0,0.0008049]
[1732471635593,0.14102732,95782.0,95781.0,0.0008049]
[1732471636504,0.24543032,95782.0,95781.0,0.0008049]
[1732471636976,0.14102732,95782.0,95781.0,0.0008049]
[1732471638340,0.14002732,95782.0,95781.0,0.0008049]
[1732471639535,0.0007114,95782.0,95781.0,0.0008049]
[1732471639771,0.0007114,95782.0,95781.0,0.14458017]
[1732471639994,0.0007114,95782.0,95781.0,0.26818017]
[1732471640688,0.0007114,95782.0,95781.0,0.30140171]
[1732471640947,0.0007114,95782.0,95781.0,0.71208579]
[1732471641208,0.0017108,95817.0,95790.0,0.15]
[1732471641443,0.0017108,95817.0,95782.0,0.09653154]
[1732471641444,0.0017108,95817.0,95812.0,0.041748]
[1732471641676,0.0017108,95817.0,95816.0,0.041746]
[1732471641901,0.0017108,95817.0,95816.0,0.14376027]
[1732471645719,0.0017108,95817.0,95816.0,0.10201427]
[1732471646166,0.0017108,95817.0,95816.0,0.14376027]
[1732471646394,0.0017108,95817.0,95816.0,0.17736038]
[1732471649077,0.0236838,95817.0,95816.0,0.17736038]
[1732471650183,0.0236838,95817.0,95816.0,0.14376027]
[1732471651129,0.0236838,95817.0,95816.0,0.14480386]
[1732471651354,0.0236838,95817.0,95816.0,0.22426027]
[1732471652071,0.0236838,95817.0,95816.0,0.42016027]
[1732471654311,0.0236838,95817.0,95816.0,0.29376027]
[1732471654551,0.0236838,95817.0,95816.0,0.10201427]
[1732471654770,0.1280488,95817.0,95816.0,0.10201427]
[1732471655026,0.0822,95815.0,95807.0,0.04175]
[1732471655240,0.0822,95815.0,95807.0,0.10201427]
[1732471655241,0.13931592,95809.0,95807.0,0.10201427]
[1732471655458,0.13931592,95809.0,95778.0,0.06068408]
[1732471655459,0.13931592,95805.0,95786.0,0.041759]
[1732471655685,0.14131592,95805.0,95789.0,0.10201427]
[1732471655920,0.10438,95804.0,95794.0,0.041756]
[1732471656163,0.104381,95803.0,95795.0,0.10201427]
[1732471656388,0.13931592,95805.0,95795.0,0.10201427]
[1732471656609,0.208759,95804.0,95795.0,0.10201427]
[1732471656853,0.104381,95803.0,95795.0,0.10201427]
[1732471657090,0.13931592,95805.0,95795.0,0.10201427]
[1732471657375,0.13931592,95805.0,95797.0,0.041754]
[1732471657632,0.13931592,95805.0,95797.0,0.10201427]
[1732471657870,0.104386,95798.0,95797.0,0.10201427]
[1732471658311,0.104383,95801.0,95797.0,0.10201427]
[1732471658799,0.13931592,95805.0,95797.0,0.10201427]
[1732471659026,0.002,95801.0,95797.0,0.10201427]
[1732471659263,0.104384,95800.0,95797.0,0.10201427]
[1732471659724,0.24369492,95805.0,95797.0,0.10201427]
[1732471659962,0.104384,95800.0,95797.0,0.10201427]
[1732471660171,0.13931592,95805.0,95797.0,0.10201427]
[1732471660379,0.208759,95804.0,95797.0,0.10201427]
[1732471660598,0.13931592,95805.0,95797.0,0.10201427]
[1732471660817,0.34807292,95805.0,95797.0,0.10201427]
[1732471661029,0.104386,95799.0,95797.0,0.10201427]
[1732471661264,0.104386,95798.0,95797.0,0.10201427]
[1732471661479,0.24370192,95798.0,95797.0,0.10201427]
[1732471661688,0.13931592,95798.0,95797.0,0.10201427]
[1732471663499,0.24370192,95798.0,95797.0,0.10201427]
[1732471664340,0.13931592,95798.0,95797.0,0.10201427]
[1732471664570,0.24370192,95798.0,95797.0,0.10201427]
[1732471664754,0.13931592,95798.0,95797.0,0.10201427]
[1732471665482,0.24370192,95798.0,95797.0,0.10201427]
[1732471665692,0.13931592,95798.0,95797.0,0.10201427]
[1732471667492,0.0822,95800.0,95797.0,0.10201427]
[1732471667711,0.13931592,95798.0,95797.0,0.10201427]
[1732471673440,0.14031592,95798.0,95797.0,0.10201427]
[1732471675231,0.14031592,95798.0,95789.0,0.0017112]
[1732471675459,0.104395,95790.0,95789.0,0.0017112]
[1732471675911,0.24371092,95790.0,95789.0,0.0017112]
[1732471676197,0.32171092,95790.0,95789.0,0.0017112]
[1732471676426,0.36811092,95790.0,95789.0,0.0017112]
[1732471689432,0.13931592,95790.0,95789.0,0.0017112]
[1732471689654,0.13931592,95791.0,95789.0,0.10372547]
[1732471689872,0.13931592,95791.0,95790.0,0.10201427]
[1732471690138,0.13931592,95792.0,95790.0,0.10201427]
[1732471690362,0.13931592,95791.0,95790.0,0.10201427]
[1732471690573,0.13931592,95792.0,95790.0,0.10201427]
[1732471690997,0.13931592,95791.0,95790.0,0.10201427]
[1732471691941,0.104389,95795.0,95790.0,0.10201427]
[1732471691942,0.13931592,95792.0,95790.0,0.10201427]
[1732471692178,0.13931592,95794.0,95792.0,0.041756]
[1732471692405,0.13931592,95794.0,95790.0,0.10201427]
[1732471692886,0.13931592,95792.0,95790.0,0.10201427]
[1732471693125,0.13931592,95794.0,95790.0,0.10201427]
[1732471693552,0.13931592,95791.0,95790.0,0.10201427]
[1732471693762,0.001,95798.0,95790.0,0.10201427]
[1732471693763,0.001,95798.0,95791.0,0.041757]
[1732471693984,0.13931592,95794.0,95791.0,0.10201427]
[1732471694401,0.001,95798.0,95791.0,0.10201427]
[1732471694634,0.13931592,95794.0,95791.0,0.10201427]
[1732471695511,0.13931592,95792.0,95791.0,0.10201427]
[1732471695957,0.24370792,95792.0,95791.0,0.10201427]
[1732471696177,0.13931592,95792.0,95791.0,0.10201427]
[1732471696867,0.13931592,95794.0,95791.0,0.10201427]
[1732471697096,0.13931592,95792.0,95791.0,0.10201427]
[1732471697733,0.104387,95797.0,95791.0,0.10201427]
[1732471697948,0.13931592,95797.0,95791.0,0.14377127]
[1732471698158,0.105386,95798.0,95791.0,0.10201427]
[1732471698373,0.13931592,95794.0,95791.0,0.10201427]
[1732471699446,0.13931592,95793.0,95791.0,0.10201427]
[1732471699659,0.13931592,95795.0,95791.0,0.10201427]
[1732471701480,0.13931592,95797.0,95791.0,0.10201427]
[1732471701710,0.13931592,95795.0,95791.0,0.10201427]
[1732471702375,0.24370792,95792.0,95791.0,0.10201427]
[1732471702585,0.021973,95792.0,95791.0,0.14377127]
[1732471702796,0.021973,95792.0,95791.0,0.10201427]
[1732471703518,0.16128892,95792.0,95791.0,0.10201427]
[1732471703960,0.021973,95792.0,95791.0,0.10201427]
[1732471704182,0.16128892,95792.0,95791.0,0.10201427]
[1732471704617,0.021973,95792.0,95791.0,0.14377127]
[1732471705306,0.021973,95792.0,95791.0,0.10201427]
[1732471705519,0.021973,95792.0,95791.0,0.14377127]
[1732471705775,0.021973,95792.0,95791.0,0.14681516]
[1732471705985,0.021973,95792.0,95791.0,0.14377127]
[1732471706202,0.021973,95792.0,95791.0,0.22857127]
[1732471706411,0.021973,95792.0,95791.0,0.37857127]
[1732471706651,0.021973,95792.0,95791.0,1.02483859]
[1732471706898,0.021973,95792.0,95791.0,0.68184103]
[1732471707115,0.021973,95792.0,95791.0,0.74252511]
[1732471707354,0.021973,95792.0,95791.0,0.54252511]
[1732471709354,0.021973,95792.0,95791.0,0.45684103]
[1732471709635,0.021973,95792.0,95791.0,0.13558403]
[1732471709859,0.021973,95792.0,95791.0,0.10201427]
[1732471710093,0.021973,95792.0,95791.0,0.10372507]
[1732471710312,0.203665,95792.0,95791.0,0.10372507]
[1732471710534,0.203665,95792.0,95791.0,0.0017108]
[1732471711033,0.248865,95792.0,95791.0,0.0017108]
[1732471720487,0.099273,95792.0,95791.0,0.0017108]
[1732471721638,0.203665,95792.0,95791.0,0.0017108]
[1732471721853,0.099273,95792.0,95791.0,0.0017108]
[1732471725398,0.021973,95792.0,95791.0,0.19408207]
[1732471726504,0.021973,95792.0,95791.0,0.19608207]
[1732471726719,0.021973,95792.0,95791.0,0.19408207]
[1732471726932,0.021973,95792.0,95791.0,0.19608207]
[1732471727372,0.021973,95792.0,95791.0,0.19408207]
[1732471727595,0.021973,95792.0,95791.0,0.19608207]
[1732471727807,0.021973,95792.0,95791.0,0.52988848]
[1732471728021,0.021973,95792.0,95791.0,0.58952876]
[1732471728556,0.021973,95792.0,95791.0,0.87949142]
[1732471730331,0.021973,95792.0,95791.0,0.56385226]
[1732471733529,0.021973,95792.0,95791.0,0.57286264]
[1732471743363,0.021973,95792.0,95791.0,0.57086264]
[1732471743572,0.021973,95792.0,95791.0,0.57286264]
[1732471746068,0.021973,95792.0,95791.0,0.77286264]
[1732471746290,0.01264641,95792.0,95791.0,1.07904612]
[1732471746509,0.01264641,95792.0,95791.0,0.76385226]
[1732471747160,0.01264641,95792.0,95791.0,1.10322932]
[1732471747382,0.01264641,95792.0,95791.0,0.78836552]
[1732471748475,0.01264641,95792.0,95791.0,0.58836552]
[1732471748685,0.01264641,95792.0,95791.0,0.62976615]
[1732471748915,0.01264641,95792.0,95791.0,0.42976615]
[1732471749135,0.01264641,95792.0,95791.0,0.62976615]
[1732471749343,0.01264641,95792.0,95791.0,0.42976615]
[1732471749559,0.01264641,95792.0,95791.0,0.62976615]
[1732471750255,0.01264641,95792.0,95791.0,0.67450487]
[1732471750972,0.01264641,95792.0,95791.0,0.74230737]
[1732471751405,0.01264641,95792.0,95791.0,0.54230737]
[1732471751620,0.01264641,95792.0,95791.0,0.83930343]
[1732471752043,0.01264641,95792.0,95791.0,0.83730343]
[1732471752471,0.01264641,95792.0,95791.0,0.83930343]
[1732471752680,0.01264641,95792.0,95791.0,0.83730343]
[1732471753364,0.01264641,95792.0,95791.0,1.15400681]
[1732471754089,0.01264641,95792.0,95791.0,0.83930343]
[1732471754543,0.01264641,95792.0,95791.0,0.83730343]
[1732471754763,0.001,95798.0,95797.0,0.30243808]
[1732471754978,0.0008554,95802.0,95801.0,0.47543708]
[1732471755193,0.0008554,95802.0,95801.0,0.80219358]
[1732471755413,0.0008554,95802.0,95801.0,0.85728275]
[1732471755640,0.0008554,95802.0,95801.0,0.85928275]
[1732471755853,0.0008554,95802.0,95801.0,1.17407039]
[1732471756070,0.0008554,95802.0,95801.0,0.85928275]